fUSD/lending_fUSD_20250221
["ID","MTS","AMOUNT","RATE_DAILY","PERIOD"]
[353971474,1740171032372,-500.0,0.00010958,2]
[353971502,1740171032636,-500.0,0.00010958,2]
[353971504,1740171032646,-500.0,0.00010958,2]
[353971506,1740171032656,-375.83162613,0.00010958,2]
[353971508,1740171032665,-500.0,0.00010958,2]
[353971510,1740171032674,-500.0,0.00010958,2]
[353971512,1740171032683,-500.0,0.00010958,2]
[353971514,1740171032692,-500.0,0.00010958,2]
[353971516,1740171032702,-500.0,0.00010958,2]
[353971518,1740171032711,-504.67975628,0.00010958,2]
[353971520,1740171032723,-500.0,0.00010958,2]
[353971522,1740171032732,-500.0,0.00010958,2]
[353971524,1740171032741,-500.0,0.00010958,2]
[353971526,1740171032750,-509.14,0.00010958,2]
[353971528,1740171032759,-500.0,0.00010958,2]
[353971530,1740171032768,-500.0,0.00010958,2]
[353971532,1740171032777,-500.0,0.00010958,2]
[353971534,1740171032786,-532.03,0.00010958,2]
[353971536,1740171032795,-329.942546,0.00010958,2]
[353971538,1740171032804,-342.67249817,0.00010958,2]
[353971540,1740171032813,-500.0,0.00010958,2]
[353971541,1740171032822,-500.0,0.00010958,2]
[353971543,1740171032831,-500.0,0.00010958,2]
[353971545,1740171032839,-895.54,0.00010958,2]
[353971547,1740171032848,-500.0,0.00010958,2]
[353971549,1740171032857,-500.0,0.00010958,2]
[353971551,1740171032866,-500.0,0.00010958,2]
[353971552,1740171032875,-723.86,0.00010958,2]
[353971554,1740171032884,-500.0,0.00010958,2]
[353971556,1740171032893,-500.0,0.00010958,2]
[353971558,1740171032903,-569.43,0.00010958,2]
[353971561,1740171032912,-721.9,0.00010958,2]
[353971563,1740171032921,-604.3,0.00010958,2]
[353971565,1740171032931,-500.0,0.00010958,2]
[353971566,1740171032940,-796.7,0.00010958,2]
[353971569,1740171032949,-500.0,0.00010958,2]
[353971570,1740171032959,-548.12,0.00010958,2]
[353971572,1740171032968,-682.11,0.00010958,2]
[353971574,1740171032977,-500.0,0.00010958,2]
[353971576,1740171032986,-500.0,0.00010958,2]
[353971578,1740171032997,-500.0,0.00010958,2]
[353971580,1740171033009,-500.0,0.00010958,2]
[353971582,1740171033018,-608.63,0.00010958,2]
[353971584,1740171033027,-500.0,0.00010958,2]
[353971586,1740171033036,-528.72,0.00010958,2]
[353971588,1740171033046,-500.0,0.00010958,2]
[353971590,1740171033055,-500.0,0.00010958,2]
[353971592,1740171033065,-500.0,0.00010958,2]
[353971594,1740171033074,-504.88701225,0.00010958,2]
[353971596,1740171033083,-500.0,0.00010958,2]
[353971598,1740171033093,-483.20158051,0.00010958,2]
[353971600,1740171033102,-500.0,0.00010958,2]
[353971602,1740171033111,-608.08,0.00010958,2]
[353971604,1740171033120,-500.0,0.00010958,2]
[353971606,1740171033130,-500.0,0.00010958,2]
[353971608,1740171033139,-500.0,0.00010958,2]
[353971610,1740171033147,-500.0,0.00010958,2]
[353971612,1740171033157,-500.0,0.00010958,2]
[353971614,1740171033166,-500.0,0.00010958,2]
[353971616,1740171033175,-500.0,0.00010958,2]
[353971618,1740171033184,-500.0,0.00010958,2]
[353971620,1740171033194,-595.1,0.00010958,2]
[353971622,1740171033203,-500.0,0.00010958,2]
[353971624,1740171033212,-500.0,0.00010958,2]
[353971626,1740171033222,-597.25,0.00010958,2]
[353971628,1740171033232,-500.0,0.00010958,2]
[353971630,1740171033241,-789.82,0.00010958,2]
[353971632,1740171033251,-161.92,0.00010958,2]
[353971634,1740171033260,-500.0,0.00010958,2]
[353971636,1740171033269,-435.22,0.00010958,2]
[353971638,1740171033278,-500.0,0.00010958,2]
[353971640,1740171033287,-500.0,0.00010958,2]
[353971642,1740171033296,-500.0,0.00010958,2]
[353971644,1740171033305,-534.75,0.00010958,2]
[353971646,1740171033314,-500.0,0.00010958,2]
[353971648,1740171033323,-500.0,0.00010958,2]
[353971649,1740171033333,-500.0,0.00010958,2]
[353971651,1740171033342,-594.45,0.00010958,2]
[353971653,1740171033351,-500.0,0.00010958,2]
[353971655,1740171033360,-500.0,0.00010958,2]
[353971657,1740171033369,-500.0,0.00010958,2]
[353971659,1740171033379,-500.0,0.00010958,2]
[353971661,1740171033388,-500.0,0.00010958,2]
[353971663,1740171033397,-500.0,0.00010958,2]
[353971665,1740171033406,-500.0,0.00010958,2]
[353971667,1740171033414,-656.67,0.00010958,2]
[353971669,1740171033424,-500.0,0.00010958,2]
[353971671,1740171033435,-500.0,0.00010958,2]
[353971673,1740171033444,-500.0,0.00010958,2]
[353971675,1740171033453,-500.0,0.00010958,2]
[353971677,1740171033463,-510.74,0.00010958,2]
[353971679,1740171033473,-158.62008463,0.00010958,2]
[353971681,1740171033482,-500.0,0.00010958,2]
[353971683,1740171033491,-500.0,0.00010958,2]
[353971685,1740171033500,-500.0,0.00010958,2]
[353971687,1740171033510,-500.0,0.00010958,2]
[353971689,1740171033519,-576.65,0.00010958,2]
[353971690,1740171033529,-500.0,0.00010958,2]
[353971692,1740171033539,-717.99,0.00010958,2]
[353971694,1740171033548,-758.02,0.00010958,2]
[353971696,1740171033558,-500.0,0.00010958,2]
[353971698,1740171033567,-500.0,0.00010958,2]
[353971700,1740171033576,-500.0,0.00010958,2]
[353971702,1740171033586,-513.70735132,0.00010958,2]
[353971703,1740171033595,-500.0,0.00010958,2]
[353971704,1740171033605,-500.0,0.00010958,2]
[353971705,1740171033614,-500.0,0.00010958,2]
[353971706,1740171033624,-628.36,0.00010958,2]
[353971707,1740171033634,-500.0,0.00010958,2]
[353971708,1740171033643,-451.5403853,0.00010958,2]
[353971709,1740171033653,-500.0,0.00010958,2]
[353971710,1740171033662,-500.0,0.00010958,2]
[353971711,1740171033671,-500.0,0.00010958,2]
[353971712,1740171033681,-549.57,0.00010958,2]
[353971713,1740171033692,-594.93,0.00010958,2]
[353971714,1740171033701,-510.35,0.00010958,2]
[353971715,1740171033711,-500.0,0.00010958,2]
[353971717,1740171033723,-500.0,0.00010958,2]
[353971719,1740171033733,-500.0,0.00010958,2]
[353971721,1740171033743,-529.44,0.00010958,2]
[353971723,1740171033753,-514.03,0.00010958,2]
[353971725,1740171033762,-925.13,0.00010958,2]
[353971727,1740171033772,-500.0,0.00010958,2]
[353971729,1740171033782,-643.85,0.00010958,2]
[353971731,1740171033792,-500.0,0.00010958,2]
[353971733,1740171033801,-728.91,0.00010958,2]
[353971735,1740171033811,-500.0,0.00010958,2]
[353971737,1740171033820,-500.0,0.00010958,2]
[353971739,1740171033830,-500.0,0.00010958,2]
[353971741,1740171033840,-791.3,0.00010958,2]
[353971743,1740171033850,-632.04,0.00010958,2]
[353971745,1740171033859,-818.59,0.00010958,2]
[353971747,1740171033868,-500.0,0.00010958,2]
[353971749,1740171033878,-592.44,0.00010958,2]
[353971751,1740171033887,-500.0,0.00010958,2]
[353971753,1740171033896,-500.0,0.00010958,2]
[353971755,1740171033906,-838.19,0.00010958,2]
[353971757,1740171033915,-720.06,0.00010958,2]
[353971759,1740171033924,-931.04,0.00010958,2]
[353971761,1740171033934,-187.80881428,0.00010958,2]
[353971763,1740171033943,-200.0,0.00010959,2]
[353971765,1740171033952,-632.53,0.00011038,2]
[353971767,1740171033962,-838.98,0.00011038,2]
[353971769,1740171033973,-500.0,0.00011038,2]
[353971771,1740171033983,-500.0,0.00011038,2]
[353971773,1740171033993,-649.17,0.00011038,2]
[353971775,1740171034005,-609.92,0.00011038,2]
[353971777,1740171034015,-500.0,0.00011038,2]
[353971779,1740171034024,-734.31,0.00011038,2]
[353971781,1740171034033,-903.74,0.00011038,2]
[353971783,1740171034044,-500.0,0.00011038,2]
[353971785,1740171034055,-500.0,0.00011038,2]
[353971787,1740171034064,-774.49,0.00011038,2]
[353971789,1740171034074,-500.0,0.00011038,2]
[353971791,1740171034087,-557.01,0.00011038,2]
[353971793,1740171034097,-601.4,0.00011038,2]
[353971795,1740171034106,-500.0,0.00011038,2]
[353971797,1740171034116,-584.44,0.00011038,2]
[353971799,1740171034125,-739.21,0.00011038,2]
[353971801,1740171034135,-1290.21,0.00011038,2]
[353971803,1740171034144,-500.0,0.00011038,2]
[353971805,1740171034154,-500.0,0.00011038,2]
[353971807,1740171034163,-911.81,0.00011038,2]
[353971809,1740171034173,-500.0,0.00011038,2]
[353971811,1740171034183,-500.0,0.00011038,2]
[353971813,1740171034193,-500.0,0.00011038,2]
[353971815,1740171034202,-721.51,0.00011038,2]
[353971817,1740171034212,-500.0,0.00011038,2]
[353971819,1740171034224,-1006.19,0.00011038,2]
[353971821,1740171034235,-567.1,0.00011038,2]
[353971823,1740171034245,-1021.87,0.00011038,2]
[353971825,1740171034255,-500.0,0.00011038,2]
[353971827,1740171034264,-641.22,0.00011038,2]
[353971829,1740171034274,-500.0,0.00011038,2]
[353971831,1740171034284,-500.0,0.00011038,2]
[353971832,1740171034294,-232.53932461,0.00011038,2]
[353971835,1740171034303,-500.0,0.00011039,2]
[353971836,1740171034313,-564.49,0.00011039,2]
[353971838,1740171034323,-500.0,0.00011039,2]
[353971840,1740171034332,-500.0,0.00011039,2]
[353971842,1740171034342,-500.0,0.00011039,2]
[353971844,1740171034351,-500.0,0.00011039,2]
[353971846,1740171034361,-545.92,0.00011039,2]
[353971848,1740171034370,-515.4,0.00011039,2]
[353971850,1740171034379,-545.11,0.00011039,2]
[353971852,1740171034389,-500.0,0.00011039,2]
[353971854,1740171034398,-500.0,0.00011039,2]
[353971856,1740171034408,-547.91,0.00011039,2]
[353971858,1740171034417,-500.0,0.00011039,2]
[353971860,1740171034429,-500.0,0.00011039,2]
[353971862,1740171034440,-500.0,0.00011039,2]
[353971864,1740171034451,-500.0,0.00011039,2]
[353971866,1740171034461,-503.04734901,0.00011039,2]
[353971868,1740171034473,-500.0,0.00011039,2]
[353971870,1740171034483,-500.0,0.00011039,2]
[353971872,1740171034494,-500.0,0.00011039,2]
[353971874,1740171034504,-500.0,0.00011039,2]
[353971876,1740171034513,-500.0,0.00011039,2]
[353971878,1740171034523,-500.0,0.00011039,2]
[353971880,1740171034533,-500.0,0.00011039,2]
[353971882,1740171034543,-500.0,0.00011039,2]
[353971884,1740171034552,-500.0,0.00011039,2]
[353971886,1740171034562,-500.0,0.00011039,2]
[353971888,1740171034571,-500.0,0.00011039,2]
[353971890,1740171034581,-500.0,0.00011039,2]
[353971892,1740171034590,-500.0,0.00011039,2]
[353971895,1740171034600,-500.0,0.00011039,2]
[353971896,1740171034610,-500.0,0.00011039,2]
[353971898,1740171034619,-500.0,0.00011039,2]
[353971900,1740171034628,-500.0,0.00011039,2]
[353971903,1740171034638,-500.0,0.00011039,2]
[353971905,1740171034647,-347.45907763,0.00011039,2]
[353971907,1740171034657,-500.0,0.00011039,2]
[353971908,1740171034666,-328.13591177,0.00011039,2]
[353971910,1740171034676,-500.0,0.00011039,2]
[353971913,1740171034685,-500.0,0.00011039,2]
[353971914,1740171034694,-920.86,0.00011039,2]
[353971916,1740171034703,-500.0,0.00011039,2]
[353971918,1740171034713,-250.75179391,0.00011039,2]
[353971920,1740171034724,-500.0,0.00011039,2]
[353971922,1740171034734,-500.0,0.00011039,2]
[353971924,1740171034744,-500.0,0.00011039,2]
[353971925,1740171034753,-1634.63,0.00011039,2]
[353971927,1740171034763,-1213.59,0.00011039,2]
[353971929,1740171034772,-500.0,0.00011039,2]
[353971931,1740171034782,-1530.25,0.00011039,2]
[353971933,1740171034791,-500.0,0.00011039,2]
[353971935,1740171034800,-1165.42,0.00011039,2]
[353971937,1740171034810,-1606.86,0.00011039,2]
[353971939,1740171034819,-500.0,0.00011039,2]
[353971941,1740171034829,-500.0,0.00011039,2]
[353971943,1740171034838,-500.0,0.00011039,2]
[353971945,1740171034847,-500.0,0.00011039,2]
[353971947,1740171034856,-500.0,0.00011039,2]
[353971949,1740171034865,-500.0,0.00011039,2]
[353971951,1740171034875,-500.0,0.00011039,2]
[353971952,1740171034884,-1202.17,0.00011039,2]
[353971954,1740171034894,-500.0,0.00011039,2]
[353971956,1740171034903,-980.68,0.00011039,2]
[353971959,1740171034913,-567.20682445,0.00011039,2]
[353971961,1740171034922,-500.0,0.00011039,2]
[353971962,1740171034931,-388.485905,0.00011039,2]
[353971964,1740171034941,-503.59365442,0.00011039,2]
[353971966,1740171034951,-500.0,0.00011039,2]
[353971968,1740171034961,-500.0,0.00011039,2]
[353971970,1740171034972,-787.96,0.00011039,2]
[353971972,1740171034982,-500.0,0.00011039,2]
[353971974,1740171034992,-715.35,0.00011039,2]
[353971976,1740171035003,-500.0,0.00011039,2]
[353971978,1740171035014,-500.0,0.00011039,2]
[353971980,1740171035023,-4732.39,0.00011039,2]
[353971982,1740171035033,-500.0,0.00011039,2]
[353971984,1740171035044,-825.04,0.00011039,2]
[353971986,1740171035053,-500.0,0.00011039,2]
[353971988,1740171035062,-781.86,0.00011039,2]
[353971990,1740171035072,-456.75589,0.00011039,2]
[353971992,1740171035083,-1296.25,0.00011039,2]
[353971994,1740171035092,-500.0,0.00011039,2]
[353971996,1740171035102,-500.0,0.00011039,2]
[353971998,1740171035112,-968.39,0.00011039,2]
[353972000,1740171035121,-500.0,0.00011039,2]
[353972002,1740171035130,-500.0,0.00011039,2]
[353972004,1740171035140,-329.81545736,0.00011039,2]
[353972006,1740171035149,-157.109847,0.00011039,2]
[353972008,1740171035158,-326.71214826,0.00011039,2]
[353972010,1740171035168,-1024.15,0.00011039,2]
[353972012,1740171035178,-500.0,0.00011039,2]
[353972014,1740171035188,-210.09,0.00011039,2]
[353972016,1740171035197,-500.0,0.00011039,2]
[353972018,1740171035207,-983.5,0.00011039,2]
[353972020,1740171035218,-641.54,0.00011039,2]
[353972022,1740171035227,-500.0,0.00011039,2]
[353972024,1740171035238,-500.0,0.00011039,2]
[353972026,1740171035248,-922.66,0.00011039,2]
[353972028,1740171035257,-521.8,0.00011039,2]
[353972030,1740171035266,-1051.72,0.00011039,2]
[353972032,1740171035275,-500.0,0.00011039,2]
[353972034,1740171035284,-500.0,0.00011039,2]
[353972036,1740171035294,-500.0,0.00011039,2]
[353972038,1740171035303,-500.0,0.00011039,2]
[353972040,1740171035312,-500.0,0.00011039,2]
[353972042,1740171035321,-500.0,0.00011039,2]
[353972044,1740171035330,-500.0,0.00011039,2]
[353972046,1740171035339,-500.0,0.00011039,2]
[353972048,1740171035349,-960.42,0.00011039,2]
[353972050,1740171035358,-500.0,0.00011039,2]
[353972052,1740171035366,-909.2,0.00011039,2]
[353972054,1740171035375,-500.0,0.00011039,2]
[353972056,1740171035384,-500.0,0.00011039,2]
[353972058,1740171035393,-500.0,0.00011039,2]
[353972060,1740171035402,-500.0,0.00011039,2]
[353972062,1740171035410,-230.212484,0.00011039,2]
[353972064,1740171035419,-699.01,0.00011039,2]
[353972066,1740171035429,-500.0,0.00011039,2]
[353972068,1740171035438,-500.0,0.00011039,2]
[353972070,1740171035447,-500.0,0.00011039,2]
[353972072,1740171035456,-1134.55,0.00011039,2]
[353972074,1740171035466,-548.55856455,0.00011039,2]
[353972076,1740171035475,-500.0,0.00011039,2]
[353972078,1740171035484,-500.0,0.00011039,2]
[353972080,1740171035493,-500.0,0.00011039,2]
[353972082,1740171035502,-500.0,0.00011039,2]
[353972084,1740171035511,-500.0,0.00011039,2]
[353972086,1740171035521,-500.0,0.00011039,2]
[353972087,1740171035530,-500.0,0.00011039,2]
[353972089,1740171035539,-2042.37,0.00011039,2]
[353972091,1740171035548,-500.0,0.00011039,2]
[353972093,1740171035557,-770.62,0.00011039,2]
[353972095,1740171035566,-500.0,0.00011039,2]
[353972097,1740171035575,-157.488315,0.00011039,2]
[353972099,1740171035585,-500.0,0.00011039,2]
[353972101,1740171035594,-500.0,0.00011039,2]
[353972103,1740171035603,-500.0,0.00011039,2]
[353972105,1740171035613,-833.6,0.00011039,2]
[353972107,1740171035622,-312.74786947,0.00011039,2]
[353972109,1740171035631,-500.0,0.00011039,2]
[353972111,1740171035641,-500.0,0.00011039,2]
[353972113,1740171035650,-500.0,0.00011039,2]
[353972115,1740171035659,-500.0,0.00011039,2]
[353972117,1740171035669,-500.0,0.00011039,2]
[353972119,1740171035678,-500.0,0.00011039,2]
[353972121,1740171035687,-500.0,0.00011039,2]
[353972123,1740171035696,-500.0,0.00011039,2]
[353972125,1740171035705,-691.53,0.00011039,2]
[353972127,1740171035714,-500.0,0.00011039,2]
[353972129,1740171035724,-1037.34,0.00011039,2]
[353972131,1740171035733,-500.0,0.00011039,2]
[353972133,1740171035743,-500.0,0.00011039,2]
[353972135,1740171035752,-500.0,0.00011039,2]
[353972137,1740171035761,-698.57,0.00011039,2]
[353972139,1740171035770,-1368.34,0.00011039,2]
[353972141,1740171035778,-500.0,0.00011039,2]
[353972143,1740171035787,-500.0,0.00011039,2]
[353972145,1740171035796,-500.0,0.00011039,2]
[353972147,1740171035805,-500.0,0.00011039,2]
[353972149,1740171035814,-500.0,0.00011039,2]
[353972151,1740171035823,-500.0,0.00011039,2]
[353972153,1740171035832,-500.0,0.00011039,2]
[353972155,1740171035841,-350.0334006,0.00011039,2]
[353972157,1740171035851,-697.57,0.00011039,2]
[353972159,1740171035859,-485.16,0.00011039,2]
[353972161,1740171035869,-500.0,0.00011039,2]
[353972163,1740171035878,-1063.71,0.00011039,2]
[353972165,1740171035887,-500.0,0.00011039,2]
[353972167,1740171035896,-1210.76,0.00011039,2]
[353972169,1740171035904,-157.466662,0.00011039,2]
[353972171,1740171035913,-916.99,0.00011039,2]
[353972173,1740171035922,-500.0,0.00011039,2]
[353972175,1740171035931,-737.32,0.00011039,2]
[353972177,1740171035940,-500.0,0.00011039,2]
[353972179,1740171035949,-500.0,0.00011039,2]
[353972181,1740171035958,-1114.97,0.00011039,2]
[353972183,1740171035969,-502.00679634,0.00011039,2]
[353972185,1740171035978,-500.0,0.00011039,2]
[353972186,1740171035987,-204.41726877,0.00011039,2]
[353972187,1740171036000,-500.0,0.00011039,2]
[353972188,1740171036009,-500.0,0.00011039,2]
[353972189,1740171036018,-841.42,0.00011039,2]
[353972190,1740171036028,-500.0,0.00011039,2]
[353972191,1740171036037,-2085.19,0.00011039,2]
[353972192,1740171036047,-500.0,0.00011039,2]
[353972193,1740171036055,-500.0,0.00011039,2]
[353972194,1740171036065,-500.0,0.00011039,2]
[353972195,1740171036074,-500.0,0.00011039,2]
[353972196,1740171036082,-1025.17,0.00011039,2]
[353972197,1740171036093,-500.0,0.00011039,2]
[353972199,1740171036102,-230.212476,0.00011039,2]
[353972201,1740171036111,-500.0,0.00011039,2]
[353972203,1740171036120,-500.0,0.00011039,2]
[353972205,1740171036129,-500.0,0.00011039,2]
[353972207,1740171036138,-500.0,0.00011039,2]
[353972209,1740171036147,-1253.06,0.00011039,2]
[353972211,1740171036156,-500.0,0.00011039,2]
[353972213,1740171036165,-500.0,0.00011039,2]
[353972215,1740171036174,-725.46,0.00011039,2]
[353972217,1740171036183,-245.26611865,0.00011039,2]
[353972219,1740171036192,-422.29761138,0.00011039,2]
[353972221,1740171036201,-500.0,0.00011039,2]
[353972223,1740171036211,-828.59,0.00011039,2]
[353972225,1740171036221,-1071.25,0.00011039,2]
[353972227,1740171036231,-663.69,0.00011039,2]
[353972229,1740171036239,-500.0,0.00011039,2]
[353972231,1740171036248,-500.9487653,0.00011039,2]
[353972233,1740171036258,-1377.64,0.00011039,2]
[353972235,1740171036267,-500.0,0.00011039,2]
[353972237,1740171036278,-500.0,0.00011039,2]
[353972239,1740171036288,-500.0,0.00011039,2]
[353972241,1740171036298,-500.0,0.00011039,2]
[353972243,1740171036308,-500.0,0.00011039,2]
[353972245,1740171036318,-500.0,0.00011039,2]
[353972247,1740171036327,-500.0,0.00011039,2]
[353972249,1740171036336,-500.0,0.00011039,2]
[353972251,1740171036345,-540.68,0.00011039,2]
[353972253,1740171036354,-491.01,0.0001104,2]
[353972255,1740171036364,-500.0,0.0001104,2]
[353972257,1740171036373,-500.0,0.0001104,2]
[353972259,1740171036382,-512.20393647,0.0001104,2]
[353972261,1740171036391,-500.0,0.0001104,2]
[353972263,1740171036400,-500.0,0.0001104,2]
[353972265,1740171036409,-1000.0,0.0001104,2]
[353972267,1740171036419,-1000.0,0.0001104,2]
[353972269,1740171036428,-1000.0,0.0001104,2]
[353972271,1740171036438,-500.0,0.0001104,2]
[353972273,1740171036447,-548.65,0.0001104,2]
[353972275,1740171036457,-500.0,0.0001104,2]
[353972277,1740171036465,-500.0,0.0001104,2]
[353972279,1740171036478,-502.87109302,0.0001104,2]
[353972281,1740171036487,-570.06,0.0001104,2]
[353972283,1740171036496,-503.46935905,0.0001104,2]
[353972285,1740171036505,-547.69,0.0001104,2]
[353972286,1740171036514,-500.0,0.0001104,2]
[353972287,1740171036523,-500.0,0.0001104,2]
[353972288,1740171036533,-500.0,0.0001104,2]
[353972289,1740171036542,-500.0,0.0001104,2]
[353972290,1740171036551,-500.81906217,0.0001104,2]
[353972291,1740171036560,-530.17,0.0001104,2]
[353972292,1740171036569,-501.25629161,0.0001104,2]
[353972293,1740171036579,-595.9,0.0001104,2]
[353972294,1740171036588,-501.69376639,0.0001104,2]
[353972295,1740171036598,-500.0,0.0001104,2]
[353972296,1740171036777,-500.0,0.0001104,2]
[353972297,1740171036813,-500.0,0.0001104,2]
[353972298,1740171036822,-500.0,0.0001104,2]
[353972299,1740171036832,-500.0,0.0001104,2]
[353972300,1740171036841,-500.0,0.0001104,2]
[353972301,1740171036850,-500.0,0.0001104,2]
[353972302,1740171036859,-500.0,0.0001104,2]
[353972303,1740171036868,-502.93071308,0.0001104,2]
[353972304,1740171036877,-500.0,0.0001104,2]
[353972305,1740171036886,-500.0,0.0001104,2]
[353972306,1740171036896,-500.0,0.0001104,2]
[353972307,1740171036904,-500.0,0.0001104,2]
[353972308,1740171036914,-596.32,0.0001104,2]
[353972309,1740171036923,-500.0,0.0001104,2]
[353972310,1740171036932,-500.0,0.0001104,2]
[353972311,1740171036941,-500.0,0.0001104,2]
[353972312,1740171036950,-500.0,0.0001104,2]
[353972313,1740171036960,-499.997,0.0001104,2]
[353972314,1740171036970,-500.0,0.0001104,2]
[353972315,1740171036979,-725.21,0.0001104,2]
[353972316,1740171036989,-736.61,0.0001104,2]
[353972317,1740171036999,-500.0,0.0001104,2]
[353972318,1740171037012,-500.0,0.0001104,2]
[353972319,1740171037021,-500.0,0.0001104,2]
[353972320,1740171037030,-500.0,0.0001104,2]
[353972321,1740171037039,-500.0,0.0001104,2]
[353972322,1740171037049,-500.0,0.0001104,2]
[353972323,1740171037058,-820.97,0.0001104,2]
[353972324,1740171037067,-500.0,0.0001104,2]
[353972325,1740171037077,-500.0,0.0001104,2]
[353972326,1740171037086,-638.4,0.0001104,2]
[353972327,1740171037096,-602.07,0.0001104,2]
[353972328,1740171037105,-591.74,0.0001104,2]
[353972329,1740171037114,-500.0,0.0001104,2]
[353972330,1740171037123,-556.78,0.0001104,2]
[353972331,1740171037132,-543.99,0.0001104,2]
[353972332,1740171037141,-500.0,0.0001104,2]
[353972333,1740171037150,-500.0,0.0001104,2]
[353972334,1740171037159,-561.34,0.0001104,2]
[353972335,1740171037168,-500.0,0.0001104,2]
[353972336,1740171037178,-500.0,0.0001104,2]
[353972337,1740171037187,-500.0,0.0001104,2]
[353972338,1740171037197,-570.21,0.0001104,2]
[353972339,1740171037206,-500.0,0.0001104,2]
[353972340,1740171037215,-737.42,0.0001104,2]
[353972341,1740171037226,-500.0,0.0001104,2]
[353972342,1740171037236,-500.0,0.0001104,2]
[353972343,1740171037246,-500.0,0.0001104,2]
[353972344,1740171037255,-368.50502373,0.0001104,2]
[353972345,1740171037264,-500.0,0.0001104,2]
[353972346,1740171037273,-500.0,0.0001104,2]
[353972347,1740171037283,-516.42,0.0001104,2]
[353972348,1740171037292,-500.0,0.0001104,2]
[353972349,1740171037301,-500.0,0.0001104,2]
[353972350,1740171037311,-500.0,0.0001104,2]
[353972351,1740171037320,-500.0,0.0001104,2]
[353972352,1740171037328,-602.18,0.0001104,2]
[353972353,1740171037337,-500.0,0.0001104,2]
[353972354,1740171037346,-637.41,0.0001104,2]
[353972355,1740171037355,-500.0,0.0001104,2]
[353972356,1740171037364,-500.0,0.0001104,2]
[353972357,1740171037373,-828.44,0.0001104,2]
[353972358,1740171037383,-500.0,0.0001104,2]
[353972359,1740171037394,-999.93,0.0001104,2]
[353972360,1740171037403,-500.0,0.0001104,2]
[353972361,1740171037412,-500.0,0.0001104,2]
[353972362,1740171037421,-502.51348251,0.0001104,2]
[353972363,1740171037431,-1000.0,0.0001104,2]
[353972364,1740171037441,-500.0,0.0001104,2]
[353972365,1740171037450,-500.0,0.0001104,2]
[353972366,1740171037459,-872.75,0.0001104,2]
[353972367,1740171037469,-500.0,0.0001104,2]
[353972368,1740171037478,-664.18,0.0001104,2]
[353972369,1740171037488,-1061.9,0.0001104,2]
[353972370,1740171037498,-500.0,0.0001104,2]
[353972371,1740171037507,-1366.7,0.0001104,2]
[353972372,1740171037516,-1157.67,0.0001104,2]
[353972373,1740171037525,-913.3,0.0001104,2]
[353972374,1740171037534,-586.15,0.0001104,2]
[353972375,1740171037543,-500.0,0.0001104,2]